bitfinex-derivatives/quotes_BTCF0:USTF0_20250218
["timestamp","ask_amount","ask_price","bid_price","bid_amount"]
[1739899299453,0.001,94673.0,94672.0,0.00015847]
[1739899299854,0.1795,94674.0,94672.0,0.00015847]
[1739899300155,0.1805,94674.0,94672.0,0.00015847]
[1739899301755,0.3918109,94674.0,94672.0,0.00015847]
[1739899301950,0.3908109,94674.0,94672.0,0.00015847]
[1739899302155,0.002,94673.0,94672.0,0.00015847]
[1739899302550,0.1795,94674.0,94672.0,0.00015847]
[1739899302745,0.1815,94674.0,94672.0,0.00015847]
[1739899302957,0.392811,94674.0,94672.0,0.00015847]
[1739899304858,0.1815,94674.0,94672.0,0.00015847]
[1739899306655,0.3928107,94674.0,94672.0,0.00015847]
[1739899308754,0.26269894,94673.0,94672.0,0.00015847]
[1739899309753,0.05138634,94673.0,94672.0,0.00015847]
[1739899310855,0.26269894,94673.0,94672.0,0.00015847]
[1739899311059,0.0528287,94672.0,94658.0,0.0915]
[1739899311262,0.2113438,94660.0,94658.0,0.0915]
[1739899311457,0.3002438,94659.0,94658.0,0.0915]
[1739899312162,0.2113572,94653.0,94652.0,0.3608]
[1739899313363,0.0894,94658.0,94652.0,0.3628]
[1739899313755,0.3007462,94658.0,94652.0,0.3628]
[1739899313957,0.002,94653.0,94652.0,0.3608]
[1739899314463,0.0894,94658.0,94652.0,0.3608]
[1739899314766,0.2113572,94653.0,94652.0,0.3608]
[1739899316158,0.2133572,94653.0,94652.0,0.3608]
[1739899316560,0.2113572,94653.0,94652.0,0.3608]
[1739899316761,0.2133572,94653.0,94652.0,0.3608]
[1739899316962,0.002,94653.0,94652.0,0.3608]
[1739899318966,0.2113572,94653.0,94652.0,0.3608]
[1739899319166,0.2113572,94653.0,94652.0,0.3618]
[1739899319569,0.2113572,94653.0,94652.0,0.3608]
[1739899319765,0.2123572,94653.0,94652.0,0.3608]
[1739899320072,0.2113572,94653.0,94652.0,0.3608]
[1739899320371,0.2133572,94653.0,94652.0,0.3608]
[1739899321358,0.002,94653.0,94652.0,0.3608]
[1739899321564,0.002,94653.0,94652.0,0.5721595]
[1739899322072,0.18848641,94666.0,94652.0,0.3608]
[1739899322366,0.01017736,94666.0,94665.0,0.3608]
[1739899322562,0.00015847,94668.0,94665.0,0.3608]
[1739899322768,0.00015847,94668.0,94666.0,0.1765]
[1739899323568,0.21148277,94668.0,94666.0,0.087]
[1739899325469,0.00015847,94668.0,94654.0,0.0939]
[1739899325659,0.2113385,94662.0,94655.0,0.0893]
[1739899325860,0.2113493,94657.0,94655.0,0.0893]
[1739899326071,0.3608,94666.0,94654.0,0.0939]
[1739899326072,0.2113528,94655.0,94654.0,0.0939]
[1739899327064,0.3049395,94661.0,94654.0,0.0939]
[1739899327271,0.2113436,94660.0,94654.0,0.0939]
[1739899327474,0.0936,94661.0,94654.0,0.0939]
[1739899327678,0.00112001,94665.0,94654.0,0.0939]
[1739899327975,0.01010176,94669.0,94662.0,0.5721363]
[1739899328165,0.01010176,94669.0,94663.0,0.0893]
[1739899328870,0.22142386,94669.0,94663.0,0.0893]
[1739899329178,0.01010176,94669.0,94663.0,0.0893]
[1739899329373,0.01010176,94669.0,94662.0,0.3608]
[1739899329374,0.2113316,94665.0,94662.0,0.3608]
[1739899329577,0.2113483,94657.0,94656.0,0.09]
[1739899330580,0.2113528,94655.0,94646.0,0.0869]
[1739899330784,0.2113528,94655.0,94647.0,0.09]
[1739899331079,0.22152405,94655.0,94647.0,0.09]
[1739899332476,0.18876647,94666.0,94647.0,0.09]
[1739899332686,0.18876647,94666.0,94661.0,0.3608]
[1739899332980,0.18876647,94666.0,94664.0,0.2113325]
[1739899333167,0.18876647,94666.0,94665.0,0.0897]
[1739899335477,0.2113528,94655.0,94645.0,0.01020577]
[1739899335683,0.2113528,94655.0,94650.0,0.0873]
[1739899336178,0.12871013,94664.0,94645.0,0.01020577]
[1739899336386,0.2113572,94653.0,94650.0,0.1802]
[1739899337375,0.211361,94652.0,94650.0,0.1802]
[1739899337781,0.210361,94652.0,94650.0,0.1802]
[1739899337982,0.0956,94651.0,94650.0,0.1802]
[1739899338186,0.0936,94651.0,94650.0,0.1802]
[1739899338381,0.0936,94651.0,94647.0,0.18983544]
[1739899338382,0.4544,94651.0,94647.0,0.18983544]
[1739899338582,0.3047639,94650.0,94647.0,0.18983544]
[1739899338783,0.31283935,94650.0,94647.0,0.18983544]
[1739899340081,0.31283935,94650.0,94635.0,0.3608]
[1739899341073,0.31083935,94650.0,94635.0,0.3608]
[1739899341693,0.31383935,94650.0,94635.0,0.3608]
[1739899343184,0.31383935,94650.0,94643.0,0.3608]
[1739899343691,0.22443935,94650.0,94643.0,0.3608]
[1739899343885,0.22443935,94650.0,94644.0,0.181]
[1739899344085,0.003,94650.0,94644.0,0.2771]
[1739899344276,0.003,94650.0,94646.0,0.2113724]
[1739899344483,0.05440375,94650.0,94646.0,0.01024396]
[1739899345288,0.05140375,94650.0,94646.0,0.22161506]
[1739899345888,0.05440375,94650.0,94646.0,0.22161506]
[1739899346291,0.05440375,94650.0,94646.0,0.01024396]
[1739899347197,0.003,94650.0,94648.0,0.2113678]
[1739899347389,0.003,94650.0,94646.0,0.01024396]
[1739899347390,0.18876647,94664.0,94649.0,0.00215847]
[1739899347591,0.18876647,94664.0,94663.0,0.3608]
[1739899348596,0.18876647,94664.0,94663.0,0.37115653]
[1739899349291,0.19176647,94664.0,94663.0,0.37115653]
[1739899350484,0.01018597,94673.0,94663.0,0.37115653]
[1739899350692,0.002,94664.0,94663.0,0.37115653]
[1739899351091,0.00112001,94680.0,94663.0,0.37115653]
[1739899351285,0.002,94664.0,94663.0,0.58249143]
[1739899351695,0.21288403,94679.0,94663.0,0.58249143]
[1739899351892,0.00215847,94668.0,94665.0,0.21133]
[1739899352088,0.00215847,94668.0,94663.0,0.37115653]
[1739899352286,0.002,94664.0,94663.0,0.37115653]
[1739899352798,0.002,94664.0,94663.0,0.3608]
[1739899352988,0.2133327,94664.0,94663.0,0.3608]
[1739899354287,0.2113374,94662.0,94660.0,0.0858]
[1739899354492,0.2113394,94661.0,94660.0,0.0858]
[1739899354799,0.002,94664.0,94660.0,0.0858]
[1739899355484,0.2113394,94661.0,94660.0,0.0858]
[1739899355689,0.3608,94663.0,94649.0,0.00015847]
[1739899355996,0.2113639,94650.0,94649.0,0.00015847]
[1739899357298,0.3963639,94650.0,94649.0,0.00015847]
[1739899357592,0.40626523,94650.0,94649.0,0.00015847]
[1739899357798,0.22126523,94650.0,94649.0,0.00015847]
[1739899358193,0.22126523,94650.0,94649.0,0.00315847]
[1739899359897,0.22426523,94650.0,94649.0,0.00015847]
[1739899360787,0.003,94650.0,94649.0,0.00015847]
[1739899363395,0.18876647,94660.0,94652.0,0.2113594]
[1739899363604,0.18876647,94660.0,94653.0,0.1896]
[1739899364499,0.19076647,94660.0,94653.0,0.1896]
[1739899364900,0.18876647,94660.0,94653.0,0.1896]
[1739899365099,0.19076647,94660.0,94653.0,0.1896]
[1739899365302,0.002,94660.0,94653.0,0.1896]
[1739899368895,0.002,94660.0,94659.0,0.3608]
[1739899370410,0.004,94660.0,94659.0,0.3608]
[1739899374006,0.004,94660.0,94659.0,0.37101125]
[1739899376898,0.003,94660.0,94659.0,0.37101125]
[1739899377901,0.004,94660.0,94659.0,0.37101125]
[1739899381306,0.2153419,94660.0,94654.0,0.0939]
[1739899381506,0.004,94660.0,94651.0,0.3608]
[1739899381817,0.2113639,94650.0,94642.0,0.01007484]
[1739899382203,0.2113639,94650.0,94639.0,0.1862]
[1739899382814,0.2113639,94650.0,94639.0,0.0917]
[1739899383011,0.2123639,94650.0,94639.0,0.0917]
[1739899384417,0.001,94650.0,94638.0,0.3608]
[1739899384620,0.2113818,94642.0,94638.0,0.3608]
[1739899385719,0.001,94650.0,94638.0,0.3608]
[1739899386813,0.2113711,94647.0,94638.0,0.3608]
[1739899387020,0.0982,94646.0,94638.0,0.3608]
[1739899387218,0.0982,94646.0,94639.0,0.093]
[1739899388118,0.10833317,94646.0,94639.0,0.093]
[1739899388318,0.10833317,94646.0,94640.0,0.0938]
[1739899388613,0.05140418,94650.0,94641.0,0.2133832]
[1739899388921,0.05140418,94650.0,94641.0,0.002]
[1739899389124,0.0982,94649.0,94640.0,0.0938]
[1739899389313,0.10825232,94649.0,94640.0,0.0938]
[1739899389820,0.2113803,94643.0,94639.0,0.096]
[1739899390113,0.10825232,94649.0,94639.0,0.096]
[1739899390320,0.31961892,94649.0,94639.0,0.096]
[1739899390524,0.10825232,94649.0,94639.0,0.096]
[1739899390713,0.10825232,94649.0,94640.0,0.002]
[1739899392116,0.2113801,94643.0,94640.0,0.002]
[1739899392318,0.2113823,94642.0,94640.0,0.002]
[1739899394019,0.0914,94641.0,94640.0,0.002]
[1739899394224,0.4522,94641.0,94640.0,0.002]
[1739899394424,0.0914,94641.0,94640.0,0.002]
[1739899394925,0.2113863,94640.0,94634.0,0.0944]
[1739899395223,0.2093863,94640.0,94634.0,0.0944]
[1739899395625,0.2073863,94640.0,94634.0,0.0944]
[1739899396927,0.2113911,94638.0,94634.0,0.0944]
[1739899397118,0.2113911,94638.0,94634.0,0.0984]
[1739899400834,0.2113932,94637.0,94634.0,0.0984]
[1739899401828,0.0914,94641.0,94634.0,0.0984]
[1739899402032,0.2113887,94639.0,94634.0,0.0984]
[1739899402731,0.2113916,94638.0,94634.0,0.0984]
[1739899403528,0.0923,94640.0,94639.0,0.2113885]
[1739899403728,0.00015847,94646.0,94637.0,0.3608]
[1739899404028,0.00015847,94646.0,94645.0,0.5721751]
[1739899404235,0.18869486,94649.0,94648.0,0.2113684]
[1739899404422,0.0379364,94649.0,94648.0,0.2113684]
[1739899404725,0.22054431,94661.0,94658.0,0.2113454]
[1739899404920,0.22054431,94661.0,94659.0,0.3608]
[1739899405120,0.22054431,94661.0,94653.0,0.3608]
[1739899405523,0.0987,94660.0,94653.0,0.3608]
[1739899406234,0.2113443,94659.0,94653.0,0.3608]
[1739899406624,0.2113443,94659.0,94651.0,0.00015847]
[1739899406625,0.5721443,94659.0,94651.0,0.00015847]
[1739899407126,0.2113443,94659.0,94651.0,0.00015847]
[1739899407527,0.002,94659.0,94651.0,0.00015847]
[1739899407926,0.002,94659.0,94652.0,0.3608]
[1739899410835,0.002,94659.0,94651.0,0.00015847]
[1739899411038,0.2113579,94653.0,94651.0,0.00015847]
[1739899413736,0.2133579,94653.0,94651.0,0.00015847]
[1739899414937,0.2133579,94653.0,94633.0,0.18983544]
[1739899414938,0.2113866,94640.0,94633.0,0.18983544]
[1739899415128,0.1924,94639.0,94633.0,0.18983544]
[1739899415329,0.1924,94639.0,94629.0,0.455]
[1739899416729,0.2113935,94637.0,94629.0,0.455]
[1739899416934,0.2113975,94635.0,94629.0,0.0942]
[1739899417133,0.2093975,94635.0,94629.0,0.0942]
[1739899418141,0.1924,94639.0,94629.0,0.0942]
[1739899418142,0.3060005,94634.0,94629.0,0.0942]
[1739899418340,0.3060005,94634.0,94629.0,0.0992]
[1739899419146,0.3060005,94634.0,94629.0,0.3106108]
[1739899419742,0.3060005,94634.0,94629.0,0.3056108]
[1739899420036,0.0946,94634.0,94629.0,0.3106108]
[1739899422631,0.0946,94634.0,94629.0,0.0992]
[1739899428242,0.0946,94634.0,94629.0,0.3106107]
[1739899428635,0.0976,94639.0,94629.0,0.0992]
[1739899429139,0.0976,94639.0,94632.0,0.2114039]
[1739899429346,0.0976,94639.0,94633.0,0.0856]
[1739899429844,0.3089905,94639.0,94633.0,0.0856]
[1739899431233,0.2113911,94638.0,94633.0,0.0856]
[1739899431730,0.2113992,94635.0,94629.0,0.0992]
[1739899431936,0.45956,94639.0,94629.0,0.005]
[1739899432136,0.211404,94633.0,94629.0,0.005]
[1739899432336,0.0807,94632.0,94627.0,0.3608]
[1739899432939,0.0767,94632.0,94627.0,0.3608]
[1739899433343,0.0767,94632.0,94624.0,0.2114216]
[1739899433545,0.0767,94632.0,94625.0,0.3608]
[1739899434049,0.0777,94632.0,94627.0,0.006]
[1739899435347,0.2114089,94630.0,94627.0,0.006]
[1739899435643,0.2114112,94629.0,94627.0,0.006]
[1739899436042,0.0964,94628.0,94627.0,0.006]
[1739899436649,0.0964,94628.0,94614.0,0.2210851]
[1739899437151,0.2114288,94621.0,94614.0,0.2210851]
[1739899437447,0.0948,94620.0,94614.0,0.2210851]
[1739899437749,0.2114336,94619.0,94614.0,0.0015851]
[1739899438652,0.0948,94620.0,94614.0,0.0015851]
[1739899438847,0.2114384,94617.0,94614.0,0.0015851]
[1739899439053,0.0902,94616.0,94614.0,0.0015851]
[1739899440245,0.0912,94616.0,94614.0,0.0015851]
[1739899441155,0.2114421,94615.0,94614.0,0.0015851]
[1739899442760,0.2124421,94615.0,94614.0,0.0015851]
[1739899443857,0.22291457,94615.0,94614.0,0.0015851]
[1739899444270,0.22191457,94615.0,94614.0,0.0015851]
[1739899447360,0.22191457,94615.0,94607.0,0.3608]
[1739899447661,0.081,94614.0,94607.0,0.3608]
[1739899447964,0.3608,94611.0,94600.0,0.102]
[1739899448150,0.12871013,94610.0,94600.0,0.102]
[1739899448557,0.12871013,94610.0,94603.0,0.2114685]
[1739899448758,0.12871013,94610.0,94600.0,0.102]
[1739899449356,0.2114683,94604.0,94600.0,0.102]
[1739899449667,0.1476,94603.0,94600.0,0.102]
[1739899450054,0.081,94602.0,94600.0,0.102]
[1739899450558,0.09134803,94602.0,94600.0,0.102]
[1739899450759,0.09134803,94602.0,93767.0,0.131586]
[1739899450760,0.39134803,94602.0,94587.0,0.0115]
[1739899450966,0.39134803,94602.0,94585.0,0.02093544]
[1739899450967,0.12871013,94597.0,94585.0,0.02093544]
[1739899451261,0.12871013,94595.0,94586.0,0.211506]
[1739899451462,0.3608,94591.0,94586.0,0.211506]
[1739899451667,0.3608,94591.0,94585.0,0.02093544]
[1739899451864,0.3608,94591.0,94590.0,0.211498]
[1739899452058,0.00015856,94600.0,94585.0,0.02093544]
[1739899452363,0.12886869,94600.0,94585.0,0.02093544]
[1739899452663,0.3618,94591.0,94585.0,0.02093544]
[1739899452868,0.001,94591.0,94590.0,0.211498]
[1739899453362,0.001,94591.0,94588.0,0.3608]
[1739899453363,0.00115856,94600.0,94589.0,0.1878]
[1739899453561,0.00115856,94600.0,94599.0,0.5722779]
[1739899453762,0.1887913,94602.0,94599.0,0.3608]
[1739899454066,0.00158688,94610.0,94609.0,0.2114555]
[1739899454251,0.00158688,94610.0,94609.0,0.58276636]
[1739899454450,0.21895921,94620.0,94609.0,0.37131086]
[1739899454656,0.21895921,94620.0,94619.0,0.3608]
[1739899454854,0.2502391,94630.0,94619.0,0.3608]
[1739899455054,0.2502391,94630.0,94629.0,0.3608]
[1739899455264,0.2114273,94622.0,94619.0,0.3608]
[1739899455464,0.26044697,94630.0,94619.0,0.3608]
[1739899455465,0.1687,94629.0,94619.0,0.3608]
[1739899455665,0.211429,94621.0,94619.0,0.3608]
[1739899455969,0.2114381,94617.0,94615.0,0.00015856]
[1739899456156,0.1127,94616.0,94615.0,0.00015856]
[1739899456861,0.3241399,94616.0,94615.0,0.00015856]
[1739899457359,0.3271399,94616.0,94615.0,0.00015856]
[1739899459283,0.3241399,94616.0,94615.0,0.00015856]
[1739899459453,0.3271399,94616.0,94615.0,0.00015856]
[1739899461459,0.2114652,94605.0,94591.0,0.0543]
[1739899461659,0.48951013,94601.0,94584.0,0.0591]
[1739899461863,0.1133,94600.0,94588.0,0.2115021]
[1739899462262,0.24201013,94600.0,94585.0,0.0556]
[1739899462565,0.24201013,94600.0,94583.0,0.37132163]
[1739899462566,0.2114961,94591.0,94583.0,0.37132163]
[1739899462769,0.2114961,94591.0,94583.0,0.3608]
[1739899463475,0.2115006,94589.0,94583.0,0.3608]
[1739899463667,0.0583,94588.0,94583.0,0.3608]
[1739899464072,0.0536,94587.0,94583.0,0.3608]
[1739899464466,0.2651053,94587.0,94583.0,0.3608]
[1739899464670,0.0597,94586.0,94583.0,0.3608]
[1739899464970,0.2115092,94585.0,94583.0,0.3608]
[1739899466379,0.2125092,94585.0,94583.0,0.3608]
[1739899467169,0.00084143,94585.0,94584.0,0.2115114]
[1739899467372,0.0578,94600.0,94589.0,0.211499]
[1739899467569,0.0578,94600.0,94598.0,0.3608]
[1739899468171,0.0578,94619.0,94601.0,0.2114734]
[1739899468172,0.0578,94611.0,94601.0,0.2114734]
[1739899469366,0.0578,94611.0,94599.0,0.3608]
[1739899469673,0.2114695,94603.0,94599.0,0.3608]
[1739899469870,0.2114695,94603.0,94595.0,0.01013474]
[1739899470176,0.2114803,94598.0,94592.0,0.3608]
[1739899470372,0.0547,94597.0,94592.0,0.3608]
[1739899470672,0.2661827,94597.0,94592.0,0.3608]
[1739899471266,0.00015856,94602.0,94600.0,0.2114751]
[1739899471467,0.00015856,94602.0,94601.0,0.3608]
[1739899471867,0.00015856,94602.0,94601.0,0.4149]
[1739899472173,0.00015856,94602.0,94601.0,0.42524397]
[1739899472374,0.00015856,94602.0,94601.0,0.63671737]
[1739899476068,0.02605869,94622.0,94616.0,0.2114397]
[1739899476262,0.02605869,94622.0,94621.0,0.3608]
[1739899476675,0.2114042,94632.0,94621.0,0.5722283]
[1739899476872,0.18863963,94627.0,94623.0,0.2114242]
[1739899477176,0.18863963,94627.0,94623.0,0.22150688]
[1739899478066,0.18863963,94627.0,94626.0,0.2114175]
[1739899478268,0.18863963,94627.0,94626.0,0.5722175]
[1739899479171,0.00015856,94633.0,94632.0,0.2114041]
[1739899479474,0.00015856,94633.0,94632.0,0.5722041]
[1739899480074,0.00015856,94633.0,94632.0,0.8722041]
[1739899481073,0.0601,94668.0,94634.0,0.12871013]
[1739899481273,0.28166707,94668.0,94663.0,0.3608]
[1739899481474,0.2113326,94665.0,94663.0,0.3608]
[1739899481973,0.2113348,94664.0,94651.0,0.3608]
[1739899482178,0.12871013,94661.0,94655.0,0.00015845]
[1739899482767,0.12871013,94661.0,94642.0,0.3608]
[1739899482968,0.2113781,94644.0,94642.0,0.3608]
[1739899483174,0.1117,94643.0,94642.0,0.3608]
[1739899483474,0.1107,94643.0,94642.0,0.3608]
[1739899485078,0.1107,94643.0,94633.0,0.00015845]
[1739899485275,0.2113972,94636.0,94633.0,0.00015845]
[1739899485981,0.0571,94635.0,94633.0,0.00015845]
[1739899486978,0.268498,94635.0,94633.0,0.00015845]
[1739899488278,0.0571,94635.0,94621.0,0.3608]
[1739899488478,0.12871013,94631.0,94621.0,0.3608]
[1739899488680,0.2114249,94623.0,94621.0,0.3608]
[1739899488881,0.0568,94622.0,94609.0,0.3608]
[1739899489371,0.2114408,94616.0,94609.0,0.3608]
[1739899489576,0.0564,94615.0,94609.0,0.3608]
[1739899489777,0.0554,94615.0,94609.0,0.3608]
[1739899490184,0.0554,94615.0,94613.0,0.001]
[1739899491375,0.1093,94615.0,94613.0,0.001]
[1739899491775,0.1103,94615.0,94609.0,0.3618]
[1739899492985,0.1103,94615.0,94613.0,0.001]
[1739899493490,0.1103,94615.0,94609.0,0.3608]
[1739899495077,0.1103,94615.0,94613.0,0.001]
[1739899496286,0.1103,94615.0,94609.0,0.3618]
[1739899496483,0.0549,94615.0,94609.0,0.3618]
[1739899496688,0.0549,94615.0,94613.0,0.001]
[1739899497279,0.2663427,94615.0,94613.0,0.001]
[1739899497479,0.2114444,94614.0,94613.0,0.001]
[1739899498686,0.2114514,94611.0,94609.0,0.3608]
[1739899498888,0.0534,94610.0,94609.0,0.3608]
[1739899499075,0.06347255,94610.0,94609.0,0.3608]
[1739899499787,0.0534,94610.0,94609.0,0.3608]
[1739899499991,0.0534,94610.0,94609.0,0.001]
[1739899500991,0.2648533,94610.0,94609.0,0.001]
[1739899501475,0.0534,94610.0,94609.0,0.001]
[1739899501678,0.0544,94610.0,94605.0,0.3608]
[1739899503079,0.2114622,94606.0,94605.0,0.3608]
[1739899504890,0.001,94606.0,94605.0,0.3608]
[1739899507589,0.0556,94606.0,94605.0,0.3608]
[1739899508691,0.001,94606.0,94605.0,0.3608]
[1739899508882,0.001,94606.0,94605.0,0.5722645]
[1739899510594,0.001,94606.0,94605.0,0.3608]
[1739899511891,0.2124622,94606.0,94605.0,0.3608]
[1739899512094,0.2124622,94606.0,94595.0,0.01054022]
[1739899512095,0.22508183,94606.0,94595.0,0.01054022]
[1739899512395,0.1161,94605.0,94590.0,0.13029554]
[1739899512595,0.1161,94605.0,94600.0,0.3608]
[1739899513003,0.1161,94605.0,94602.0,0.3608]
[1739899514804,0.00015854,94608.0,94606.0,0.2114614]
[1739899515103,0.00015854,94608.0,94602.0,0.3608]
[1739899515903,0.21161694,94608.0,94602.0,0.3608]
[1739899516508,0.2114602,94607.0,94602.0,0.3608]
[1739899517093,0.00015854,94608.0,94602.0,0.5722705]
[1739899518604,0.2114667,94604.0,94602.0,0.3608]
[1739899518808,0.2114822,94598.0,94596.0,0.3608]
[1739899519012,0.1115,94597.0,94596.0,0.3608]
[1739899520303,0.12425247,94597.0,94596.0,0.3608]
[1739899520606,0.1115,94597.0,94596.0,0.3608]
[1739899531913,0.4723,94597.0,94590.0,0.00158541]
[1739899532108,0.2114936,94592.0,94590.0,0.00158541]
[1739899532409,0.4723,94597.0,94573.0,0.02207964]
[1739899532410,0.2115085,94586.0,94573.0,0.02207964]
[1739899532610,0.0559,94591.0,94573.0,0.02207964]
[1739899532611,0.2115192,94581.0,94573.0,0.02207964]
[1739899533211,0.3608,94582.0,94573.0,0.02207964]
[1739899533920,0.001,94581.0,94573.0,0.02207964]
[1739899534214,0.12871013,94610.0,94576.0,0.3608]
[1739899534523,0.2114692,94603.0,94592.0,0.3608]
[1739899534722,0.12871013,94602.0,94592.0,0.3608]
[1739899534918,0.12871013,94602.0,94586.0,0.3608]
[1739899535216,0.2114692,94603.0,94586.0,0.3608]
[1739899535411,0.12871013,94600.0,94595.0,0.3608]
[1739899535611,0.12871013,94600.0,94587.0,0.3608]
[1739899536721,0.12971013,94600.0,94587.0,0.3618]
[1739899537120,0.2114786,94599.0,94587.0,0.001]
[1739899537314,0.12971013,94600.0,94587.0,0.001]
[1739899537315,0.3608,94592.0,94587.0,0.001]
[1739899537723,0.2114878,94595.0,94587.0,0.001]
[1739899539023,0.3608,94592.0,94587.0,0.001]
[1739899539221,0.3608,94592.0,94585.0,0.00015854]
[1739899539419,0.2115011,94589.0,94587.0,0.001]
[1739899539617,0.0543,94588.0,94587.0,0.001]
[1739899543220,0.0543,94588.0,94585.0,0.00015854]
[1739899543418,0.0553,94588.0,94587.0,0.001]
[1739899544321,0.0553,94588.0,94587.0,0.3618]
[1739899544322,0.001,94588.0,94587.0,0.3618]
[1739899544629,0.001,94588.0,94587.0,0.418]
[1739899546226,0.001,94588.0,94587.0,0.3608]
[1739899546423,0.001,94588.0,94587.0,0.3618]
[1739899546622,0.0574,94588.0,94587.0,0.3618]
[1739899550023,0.05243465,94588.0,94587.0,0.3618]
[1739899553124,0.001,94588.0,94587.0,0.3618]
[1739899553323,0.001,94588.0,94587.0,0.4111]
[1739899553533,0.06534048,94598.0,94587.0,0.4111]
[1739899553730,0.06534048,94598.0,94597.0,0.3608]
[1739899555036,0.06534048,94598.0,94597.0,0.3618]
[1739899556134,0.05142897,94600.0,94597.0,0.3618]
[1739899556736,0.0599,94599.0,94597.0,0.3618]
[1739899557436,0.0599,94599.0,94597.0,0.3608]
[1739899557633,0.0599,94599.0,94597.0,0.3628]
[1739899558036,0.0599,94599.0,94597.0,0.3608]
[1739899558230,0.0599,94599.0,94597.0,0.3628]
[1739899559135,0.05142897,94598.0,94597.0,0.5742824]
[1739899562627,0.05142897,94598.0,94597.0,0.3628]
[1739899563132,0.05142897,94602.0,94597.0,0.3628]
[1739899563835,0.05142897,94602.0,94600.0,0.5722752]
[1739899564037,0.05142897,94602.0,94601.0,0.056]
[1739899566436,0.00015854,94603.0,94601.0,0.056]
[1739899566836,0.00015854,94603.0,94601.0,0.057]
[1739899567734,0.00015854,94603.0,94601.0,0.056]
[1739899567937,0.00015854,94603.0,94601.0,0.2684723]
[1739899568638,0.00015854,94603.0,94601.0,0.28129789]
[1739899571148,0.00015854,94603.0,94602.0,0.0564]
[1739899571536,0.00015854,94603.0,94601.0,0.001]
[1739899573541,0.21162804,94603.0,94600.0,0.3608]
[1739899573740,0.2114734,94601.0,94600.0,0.3608]
[1739899574144,0.2104734,94601.0,94600.0,0.3608]
[1739899574546,0.01244921,94601.0,94592.0,0.18980768]
[1739899574744,0.2114828,94597.0,94592.0,0.18980768]
[1739899574949,0.0563,94596.0,94592.0,0.18980768]
[1739899575452,0.2114908,94594.0,94592.0,0.18980768]
[1739899575949,0.0563,94596.0,94586.0,0.25269251]
[1739899576256,0.18501013,94596.0,94586.0,0.25269251]
[1739899576846,0.18501013,94596.0,94585.0,0.00015854]
[1739899576847,0.2114977,94591.0,94585.0,0.00015854]
[1739899577059,0.211501,94589.0,94585.0,0.00015854]
[1739899577351,0.2115035,94588.0,94585.0,0.00015854]
[1739899578254,0.2115058,94587.0,94585.0,0.00015854]
[1739899578447,0.211492,94593.0,94585.0,0.00015854]
[1739899578750,0.18501013,94596.0,94585.0,0.00015854]
[1739899578956,0.2115021,94589.0,94585.0,0.00015854]
[1739899579154,0.0555,94588.0,94585.0,0.00015854]
[1739899579455,0.2670034,94588.0,94585.0,0.00015854]
[1739899581352,0.2115053,94587.0,94585.0,0.00015854]
[1739899582654,0.3608,94586.0,94585.0,0.00015854]
[1739899583659,0.2115338,94574.0,94573.0,0.02207964]
[1739899584043,0.3608,94584.0,94573.0,0.02207964]
[1739899584249,0.0545,94582.0,94573.0,0.02207964]
[1739899584450,0.2115325,94575.0,94573.0,0.02207964]
[1739899584755,0.2115316,94575.0,94573.0,0.02207964]
[1739899585055,0.0568,94581.0,94573.0,0.02207964]
[1739899585259,0.2115338,94574.0,94573.0,0.02207964]
[1739899587747,0.22424379,94574.0,94573.0,0.02207964]
[1739899587945,0.01270999,94574.0,94573.0,0.02207964]
[1739899588141,0.2115252,94578.0,94573.0,0.02207964]
[1739899588558,0.0568,94581.0,94573.0,0.02207964]
[1739899588757,0.0690093,94581.0,94573.0,0.02207964]
[1739899589059,0.2115318,94575.0,94573.0,0.02207964]
[1739899589253,0.2805283,94581.0,94573.0,0.02207964]
[1739899589453,0.0690093,94581.0,94580.0,0.3608]
[1739899589667,0.0568,94581.0,94580.0,0.3608]
[1739899590560,0.06924039,94581.0,94580.0,0.3608]
[1739899590947,0.0568,94581.0,94580.0,0.3608]
[1739899592760,0.5722841,94597.0,94580.0,0.3608]
[1739899592964,0.1125,94596.0,94586.0,0.211507]
[1739899593464,0.0561,94596.0,94585.0,0.2115086]
[1739899593657,0.0561,94596.0,94582.0,0.3608]
[1739899593658,0.01240074,94599.0,94586.0,0.1106]
[1739899593865,0.18896367,94604.0,94597.0,0.2114809]
[1739899594064,0.18896367,94604.0,94603.0,0.3608]
[1739899594861,0.01220443,94604.0,94603.0,0.3608]
[1739899595061,0.0561,94606.0,94603.0,0.3608]
[1739899595454,0.005,94604.0,94603.0,0.3608]
[1739899596156,0.0176281,94604.0,94594.0,0.36095854]
[1739899596360,0.2114862,94596.0,94594.0,0.00015854]
[1739899596563,0.0572,94595.0,94594.0,0.00015854]
[1739899597052,0.06960074,94595.0,94594.0,0.00015854]
[1739899597655,0.07160074,94595.0,94594.0,0.00015854]
[1739899597853,0.01440074,94595.0,94594.0,0.00015854]
[1739899598165,0.002,94595.0,94594.0,0.00015854]
[1739899602456,0.2134868,94595.0,94594.0,0.00015854]
[1739899602656,0.2756868,94595.0,94594.0,0.00015854]
[1739899604670,0.32711675,94595.0,94594.0,0.00015854]
[1739899606675,0.32711675,94595.0,94581.0,0.3608]
[1739899606676,0.2115159,94582.0,94581.0,0.3608]
[1739899609268,0.01230619,94582.0,94573.0,0.02207964]
[1739899609461,0.2115293,94576.0,94573.0,0.02207964]
[1739899611481,0.1228,94581.0,94573.0,0.02207964]
[1739899611774,0.2115191,94581.0,94580.0,0.3608]
[1739899614270,0.2115191,94581.0,94573.0,0.02207964]
[1739899614481,0.2115293,94576.0,94573.0,0.02207964]
[1739899620275,0.01244278,94582.0,94573.0,0.02207964]
[1739899620481,0.2115271,94577.0,94576.0,0.058]
[1739899621971,0.2115271,94577.0,94573.0,0.02207964]
[1739899622173,0.1173,94576.0,94573.0,0.02207964]
[1739899622380,0.1772,94576.0,94573.0,0.02207964]
[1739899625981,0.538,94576.0,94570.0,0.1]
[1739899626290,0.2115405,94571.0,94570.0,0.1]
[1739899630486,0.2145405,94571.0,94570.0,0.1]
[1739899636486,0.26598492,94571.0,94570.0,0.1]
[1739899646794,0.05444442,94571.0,94570.0,0.1]